fUST/lending_fUST_20250115
["ID","MTS","AMOUNT","RATE_DAILY","PERIOD"]
[349052956,1736953851580,-500.0,0.00020547,3]
[349052957,1736953851599,-500.0,0.00020547,3]
[349052958,1736953851615,-608.7,0.00020547,3]
[349052959,1736953851631,-639.84,0.00020547,3]
[349052960,1736953851647,-562.26,0.00020547,3]
[349052961,1736953851658,-277.38,0.00020547,3]
[349052962,1736953851673,-500.0,0.00020547,3]
[349052963,1736953851689,-500.0,0.00020547,3]
[349052964,1736953851704,-500.0,0.00020547,3]
[349052965,1736953851719,-500.0,0.00020547,3]
[349052966,1736953851734,-511.4,0.00020547,3]
[349052967,1736953851747,-500.0,0.00020547,3]
[349052968,1736953851758,-2680.33,0.00020547,3]
[349052969,1736953851773,-500.0,0.00020547,3]
[349052970,1736953851790,-500.0,0.00020547,3]
[349052971,1736953851804,-650.44,0.00020547,3]
[349052972,1736953851817,-500.0,0.00020547,3]
[349052973,1736953851832,-1282.9,0.00020547,3]
[349052974,1736953851848,-2139.02,0.00020547,3]
[349052976,1736953851859,-515.79,0.00020547,3]
[349052977,1736953851872,-500.0,0.00020547,3]
[349052978,1736953851886,-574.36,0.00020547,3]
[349052979,1736953851899,-2501.05,0.00020547,3]
[349052980,1736953851911,-1239.66,0.00020547,3]
[349052981,1736953851924,-500.0,0.00020547,3]
[349052983,1736953851936,-500.0,0.00020547,3]
[349052984,1736953851948,-1176.63,0.00020547,3]
[349052985,1736953851961,-500.0,0.00020547,3]
[349052986,1736953851974,-700.25,0.00020547,3]
[349052987,1736953851987,-500.0,0.00020547,3]
[349052989,1736953852000,-788.55,0.00020547,3]
[349052990,1736953852013,-14264.7,0.00020547,3]
[349052991,1736953852026,-500.0,0.00020547,3]
[349052992,1736953852040,-940.83,0.00020547,3]
[349052993,1736953852053,-500.0,0.00020547,3]
[349052994,1736953852065,-500.0,0.00020547,3]
[349052995,1736953852078,-500.16963628,0.00020556,2]
[349052996,1736953852094,-352.331,0.0002056,2]
[349052997,1736953852106,-4031.06346445,0.0002059,2]
[349052998,1736953852118,-179.09,0.00020684,3]
[349052999,1736953852131,-500.0,0.00020684,3]
[349053000,1736953852146,-500.0,0.00020684,3]
[349053001,1736953852156,-500.0,0.00020684,3]
[349053002,1736953852167,-608.7,0.00020684,3]
[349053003,1736953852176,-639.84,0.00020684,3]
[349053004,1736953852185,-562.26,0.00020684,3]
[349053005,1736953852194,-500.0,0.00020684,3]
[349053006,1736953852204,-458.59,0.00020684,3]
[349053007,1736953852215,-500.0,0.00020684,3]
[349053008,1736953852224,-521.13,0.00020684,3]
[349053009,1736953852234,-511.4,0.00020684,3]
[349053010,1736953852245,-500.0,0.00020684,3]
[349053011,1736953852261,-2680.33,0.00020684,3]
[349053012,1736953852271,-500.0,0.00020684,3]
[349053014,1736953852429,-500.0,0.00020684,3]
[349053015,1736953852445,-650.44,0.00020684,3]
[349053016,1736953852455,-500.0,0.00020684,3]
[349053017,1736953852466,-1282.9,0.00020684,3]
[349053018,1736953852476,-2139.02,0.00020684,3]
[349053019,1736953852486,-500.0,0.00020684,3]
[349053020,1736953852496,-574.36,0.00020684,3]
[349053021,1736953852507,-2501.05,0.00020684,3]
[349053022,1736953852517,-1239.66,0.00020684,3]
[349053023,1736953852527,-500.0,0.00020684,3]
[349053024,1736953852537,-500.0,0.00020684,3]
[349053025,1736953852548,-1176.63,0.00020684,3]
[349053026,1736953852558,-500.0,0.00020684,3]
[349053027,1736953852568,-700.25,0.00020684,3]
[349053028,1736953852578,-399.41,0.00020684,3]
[349053029,1736953852590,-788.55,0.00020684,3]
[349053030,1736953852604,-14264.7,0.00020684,3]
[349053031,1736953852613,-500.0,0.00020684,3]
[349053032,1736953852623,-940.83,0.00020684,3]
[349053033,1736953852633,-500.0,0.00020684,3]
[349053034,1736953852645,-500.0,0.00020684,3]
[349053035,1736953852655,-4031.06346445,0.00020728,2]
[349053036,1736953852666,-500.00000009,0.000208,2]
[349053037,1736953852676,-500.0,0.00020821,3]
[349053038,1736953852689,-500.0,0.00020821,3]
[349053039,1736953852701,-500.0,0.00020821,3]
[349053040,1736953852711,-608.7,0.00020821,3]
[349053041,1736953852722,-639.84,0.00020821,3]
[349053042,1736953852731,-562.26,0.00020821,3]
[349053043,1736953852740,-500.0,0.00020821,3]
[349053044,1736953852750,-500.0,0.00020821,3]
[349053046,1736953852760,-511.4,0.00020821,3]
[349053047,1736953852769,-500.0,0.00020821,3]
[349053048,1736953852779,-2680.33,0.00020821,3]
[349053049,1736953852789,-500.0,0.00020821,3]
[349053050,1736953852800,-500.0,0.00020821,3]
[349053051,1736953852809,-650.44,0.00020821,3]
[349053052,1736953852819,-500.0,0.00020821,3]
[349053053,1736953852830,-1282.9,0.00020821,3]
[349053054,1736953852844,-2139.02,0.00020821,3]
[349053055,1736953852855,-500.0,0.00020821,3]
[349053056,1736953852866,-574.36,0.00020821,3]
[349053057,1736953852877,-2501.05,0.00020821,3]
[349053058,1736953852886,-1239.66,0.00020821,3]
[349053059,1736953852896,-500.0,0.00020821,3]
[349053061,1736953852907,-500.0,0.00020821,3]
[349053062,1736953852921,-1176.63,0.00020821,3]
[349053063,1736953852931,-500.0,0.00020821,3]
[349053064,1736953852942,-700.25,0.00020821,3]
[349053065,1736953852952,-788.55,0.00020821,3]
[349053066,1736953852962,-14264.7,0.00020821,3]
[349053067,1736953852973,-500.0,0.00020821,3]
[349053068,1736953852983,-940.83,0.00020821,3]
[349053069,1736953852994,-500.0,0.00020821,3]
[349053070,1736953853005,-500.0,0.00020821,3]
[349053071,1736953853014,-151.0,0.00020865,2]
[349053072,1736953853025,-151.0,0.00020865,2]
[349053073,1736953853035,-4031.06346445,0.00020866,2]
[349053074,1736953853045,-352.9020598,0.00020877,2]
[349053075,1736953853055,-465.10251228,0.00020909,2]
[349053076,1736953853066,-500.0,0.00020933,2]
[349053077,1736953853076,-500.0,0.00020933,2]
[349053078,1736953853090,-500.0,0.00020933,2]
[349053079,1736953853100,-500.0,0.00020933,2]
[349053080,1736953853110,-500.0,0.00020933,2]
[349053081,1736953853120,-151.0,0.00020958,2]
[349053082,1736953853129,-435.782879,0.00020958,2]
[349053083,1736953853140,-435.782879,0.00020958,2]
[349053084,1736953853150,-500.0,0.00020958,3]
[349053086,1736953853160,-225.67479499,0.00020958,3]
[349053087,1736953853179,-274.32520501,0.00020958,3]
[349053088,1736953853189,-500.0,0.00020958,3]
[349053089,1736953853201,-608.7,0.00020958,3]
[349053090,1736953853211,-639.84,0.00020958,3]
[349053091,1736953853221,-562.26,0.00020958,3]
[349053092,1736953853231,-500.0,0.00020958,3]
[349053093,1736953853241,-251.22,0.00020958,3]
[349053094,1736953853251,-511.4,0.00020958,3]
[349053095,1736953853263,-500.0,0.00020958,3]
[349053096,1736953853273,-2680.33,0.00020958,3]
[349053097,1736953853284,-500.0,0.00020958,3]
[349053098,1736953853294,-500.0,0.00020958,3]
[349053099,1736953853304,-650.44,0.00020958,3]
[349053101,1736953853313,-500.0,0.00020958,3]
[349053102,1736953853323,-1282.9,0.00020958,3]
[349053103,1736953853333,-275.6874573,0.00020958,3]
[349053104,1736953853350,-1863.3325427,0.00020958,3]
[349053105,1736953853360,-341.14,0.00020958,3]
[349053106,1736953853370,-574.36,0.00020958,3]
[349053107,1736953853381,-2501.05,0.00020958,3]
[349053108,1736953853391,-1239.66,0.00020958,3]
[349053109,1736953853402,-62.46708645,0.00020958,3]
[349053110,1736953853414,-437.53291355,0.00020958,3]
[349053111,1736953853425,-450.54,0.00020958,3]
[349053112,1736953853435,-1176.63,0.00020958,3]
[349053113,1736953853445,-500.0,0.00020958,3]
[349053114,1736953853454,-700.25,0.00020958,3]
[349053115,1736953853464,-788.55,0.00020958,3]
[349053116,1736953853474,-14264.7,0.00020958,3]
[349053117,1736953853484,-500.0,0.00020958,3]
[349053118,1736953853494,-940.83,0.00020958,3]
[349053119,1736953853506,-500.0,0.00020958,3]
[349053120,1736953853516,-500.0,0.00020958,3]
[349053121,1736953853526,-1000.0,0.00021,21]
[349053122,1736953853536,-3000.0,0.00021,2]
[349053123,1736953853546,-4031.06346445,0.00021003,2]
[349053124,1736953853555,-3000.0,0.0002101,2]
[349053125,1736953853565,-3000.0,0.0002102,2]
[349053126,1736953853575,-1500.0,0.00021022,2]
[349053127,1736953853584,-4932.270163,0.0002103,2]
[349053128,1736953853595,-429.65264352,0.00021082,2]
[349053129,1736953853606,-493.59008555,0.00021085,2]
[349053130,1736953853616,-500.0,0.00021095,3]
[349053131,1736953853627,-500.0,0.00021095,3]
[349053132,1736953853637,-500.0,0.00021095,3]
[349053133,1736953853647,-608.7,0.00021095,3]
[349053134,1736953853657,-639.84,0.00021095,3]
[349053135,1736953853667,-562.26,0.00021095,3]
[349053136,1736953853677,-500.0,0.00021095,3]
[349053137,1736953853687,-511.4,0.00021095,3]
[349053138,1736953853696,-500.0,0.00021095,3]
[349053139,1736953853706,-2680.33,0.00021095,3]
[349053140,1736953853716,-500.0,0.00021095,3]
[349053141,1736953853727,-500.0,0.00021095,3]
[349053142,1736953853736,-650.44,0.00021095,3]
[349053143,1736953853746,-500.0,0.00021095,3]
[349053144,1736953853756,-1282.9,0.00021095,3]
[349053145,1736953853766,-2139.02,0.00021095,3]
[349053146,1736953853776,-574.36,0.00021095,3]
[349053147,1736953853786,-2501.05,0.00021095,3]
[349053148,1736953853797,-1239.66,0.00021095,3]
[349053149,1736953853809,-516.71,0.00021095,3]
[349053150,1736953853819,-1176.63,0.00021095,3]
[349053151,1736953853829,-605.87,0.00021095,3]
[349053152,1736953853842,-700.25,0.00021095,3]
[349053153,1736953853852,-788.55,0.00021095,3]
[349053154,1736953853862,-14264.7,0.00021095,3]
[349053155,1736953853871,-193.73,0.00021095,3]
[349053156,1736953853881,-940.83,0.00021095,3]
[349053157,1736953853891,-500.0,0.00021095,3]
[349053158,1736953853901,-4031.06346445,0.00021141,2]
[349053159,1736953853911,-500.0,0.00021232,3]
[349053160,1736953853921,-500.0,0.00021232,3]
[349053161,1736953853931,-500.0,0.00021232,3]
[349053163,1736953853941,-608.7,0.00021232,3]
[349053164,1736953853950,-639.84,0.00021232,3]
[349053165,1736953853959,-562.26,0.00021232,3]
[349053166,1736953853969,-634.60345856,0.00021232,3]
[349053167,1736953853979,-511.4,0.00021232,3]
[349053168,1736953853989,-500.0,0.00021232,3]
[349053169,1736953853999,-2680.33,0.00021232,3]
[349053170,1736953854009,-500.0,0.00021232,3]
[349053171,1736953854019,-500.0,0.00021232,3]
[349053172,1736953854028,-650.44,0.00021232,3]
[349053173,1736953854038,-500.0,0.00021232,3]
[349053174,1736953854048,-1282.9,0.00021232,3]
[349053175,1736953854058,-2139.02,0.00021232,3]
[349053176,1736953854067,-574.36,0.00021232,3]
[349053177,1736953854077,-2501.05,0.00021232,3]
[349053178,1736953854090,-1239.66,0.00021232,3]
[349053179,1736953854100,-1176.63,0.00021232,3]
[349053180,1736953854110,-700.25,0.00021232,3]
[349053181,1736953854120,-788.55,0.00021232,3]
[349053182,1736953854129,-14264.7,0.00021232,3]
[349053183,1736953854139,-940.83,0.00021232,3]
[349053184,1736953854148,-153.75,0.00021232,3]
[349053185,1736953854159,-151.0,0.00021279,2]
[349053186,1736953854169,-395.0,0.00021279,2]
[349053187,1736953854178,-4031.06346445,0.00021279,2]
[349053188,1736953854188,-625.83993242,0.00021283,2]
[349053189,1736953854198,-500.0,0.00021283,2]
[349053190,1736953854208,-500.0,0.00021369,3]
[349053192,1736953854218,-421.62,0.00021369,3]
[349053193,1736953854228,-225.21,0.00021369,3]
[349053194,1736953854239,-608.7,0.00021369,3]
[349053195,1736953854249,-639.84,0.00021369,3]
[349053196,1736953854260,-562.26,0.00021369,3]
[349053197,1736953854271,-511.4,0.00021369,3]
[349053198,1736953854282,-500.0,0.00021369,3]
[349053199,1736953854292,-2680.33,0.00021369,3]
[349053200,1736953854302,-454.91,0.00021369,3]
[349053201,1736953854312,-500.0,0.00021369,3]
[349053202,1736953854322,-650.44,0.00021369,3]
[349053203,1736953854332,-500.0,0.00021369,3]
[349053204,1736953854346,-1282.9,0.00021369,3]
[349053205,1736953854356,-2139.02,0.00021369,3]
[349053206,1736953854366,-574.36,0.00021369,3]
[349053207,1736953854376,-2501.05,0.00021369,3]
[349053208,1736953854385,-1239.66,0.00021369,3]
[349053209,1736953854395,-1176.63,0.00021369,3]
[349053210,1736953854405,-700.25,0.00021369,3]
[349053211,1736953854415,-788.55,0.00021369,3]
[349053212,1736953854426,-14264.7,0.00021369,3]
[349053213,1736953854436,-940.83,0.00021369,3]
[349053214,1736953854446,-151.0,0.000214,2]
[349053215,1736953854456,-435.782879,0.000214,2]
[349053216,1736953854466,-435.782879,0.000214,2]
[349053217,1736953854476,-4031.06346445,0.00021417,2]
[349053218,1736953854485,-417.3359663,0.00021427,2]
[349053219,1736953854495,-1000.0,0.00021481,2]
[349053220,1736953854505,-500.3037617,0.00021481,2]
[349053221,1736953854515,-572.02639472,0.00021481,2]
[349053222,1736953854524,-1000.0,0.00021481,2]
[349053223,1736953854534,-1000.0,0.00021481,2]
[349053224,1736953854543,-5270.66,0.000215,2]
[349053225,1736953854553,-1688.68,0.000215,2]
[349053226,1736953854563,-500.0,0.00021506,3]
[349053227,1736953854572,-608.7,0.00021506,3]
[349053228,1736953854581,-639.84,0.00021506,3]
[349053229,1736953854593,-562.26,0.00021506,3]
[349053230,1736953854604,-511.4,0.00021506,3]
[349053231,1736953854613,-500.0,0.00021506,3]
[349053232,1736953854625,-2680.33,0.00021506,3]
[349053233,1736953854635,-500.0,0.00021506,3]
[349053235,1736953854644,-650.44,0.00021506,3]
[349053236,1736953854654,-287.03,0.00021506,3]
[349053237,1736953854664,-1282.9,0.00021506,3]
[349053238,1736953854674,-2139.02,0.00021506,3]
[349053239,1736953854684,-574.36,0.00021506,3]
[349053240,1736953854694,-2501.05,0.00021506,3]
[349053241,1736953854704,-1239.66,0.00021506,3]
[349053242,1736953854715,-1176.63,0.00021506,3]
[349053243,1736953854725,-700.25,0.00021506,3]
[349053244,1736953854735,-788.55,0.00021506,3]
[349053245,1736953854745,-14264.7,0.00021506,3]
[349053246,1736953854755,-940.83,0.00021506,3]
[349053247,1736953854856,-151.0,0.00021522,2]
[349053248,1736953854866,-4031.06346445,0.00021555,2]
[349053249,1736953854876,-3744.0,0.000216,4]
[349053250,1736953854886,-239.6621048,0.00021643,2]
[349053251,1736953854896,-500.0,0.00021643,3]
[349053252,1736953854905,-608.7,0.00021643,3]
[349053253,1736953854915,-639.84,0.00021643,3]
[349053254,1736953854925,-562.26,0.00021643,3]
[349053255,1736953854937,-511.4,0.00021643,3]
[349053256,1736953854947,-598.94374177,0.00021643,3]
[349053257,1736953854957,-2680.33,0.00021643,3]
[349053258,1736953854967,-500.0,0.00021643,3]
[349053259,1736953854977,-650.44,0.00021643,3]
[349053260,1736953854987,-1282.9,0.00021643,3]
[349053261,1736953854996,-2139.02,0.00021643,3]
[349053262,1736953855007,-574.36,0.00021643,3]
[349053263,1736953855016,-2501.05,0.00021643,3]
[349053265,1736953855027,-1239.66,0.00021643,3]
[349053266,1736953855036,-1176.63,0.00021643,3]
[349053267,1736953855047,-700.25,0.00021643,3]
[349053268,1736953855057,-788.55,0.00021643,3]
[349053269,1736953855068,-587.0,0.00021643,2]
[349053270,1736953855078,-14264.7,0.00021643,3]
[349053271,1736953855090,-940.83,0.00021643,3]
[349053272,1736953855101,-407.09976235,0.0002168,2]
[349053273,1736953855111,-4031.06346445,0.00021693,2]
[349053274,1736953855122,-500.0,0.0002178,3]
[349053275,1736953855132,-608.7,0.0002178,3]
[349053276,1736953855143,-639.84,0.0002178,3]
[349053277,1736953855152,-562.26,0.0002178,3]
[349053278,1736953855162,-511.4,0.0002178,3]
[349053279,1736953855172,-2680.33,0.0002178,3]
[349053280,1736953855182,-500.0,0.0002178,3]
[349053281,1736953855192,-650.44,0.0002178,3]
[349053282,1736953855201,-1282.9,0.0002178,3]
[349053283,1736953855211,-2139.02,0.0002178,3]
[349053284,1736953855221,-574.36,0.0002178,3]
[349053285,1736953855231,-2501.05,0.0002178,3]
[349053286,1736953855241,-1239.66,0.0002178,3]
[349053287,1736953855251,-1176.63,0.0002178,3]
[349053288,1736953855263,-700.25,0.0002178,3]
[349053289,1736953855274,-788.55,0.0002178,3]
[349053290,1736953855284,-14264.7,0.0002178,3]
[349053291,1736953855294,-940.83,0.0002178,3]
[349053292,1736953855304,-429.65264352,0.00021784,2]
[349053293,1736953855313,-4031.06346445,0.00021831,2]
[349053294,1736953855323,-1000.0,0.00021831,2]
[349053295,1736953855333,-1000.0,0.00021917,2]
[349053296,1736953855345,-501.4401384,0.00021917,3]
[349053297,1736953855355,-151.0,0.00021917,2]
[349053298,1736953855365,-306.93046777,0.00021917,3]
[349053299,1736953855375,-435.782879,0.00021917,2]
[349053300,1736953855384,-435.782879,0.00021917,2]
[349053301,1736953855394,-500.0,0.00021917,3]
[349053302,1736953855404,-608.7,0.00021917,3]
[349053303,1736953855413,-639.84,0.00021917,3]
[349053304,1736953855424,-562.26,0.00021917,3]
[349053305,1736953855434,-511.4,0.00021917,3]
[349053306,1736953855444,-1000.0,0.00021917,2]
[349053307,1736953855455,-1000.0,0.00021917,2]
[349053308,1736953855466,-2680.33,0.00021917,3]
[349053309,1736953855476,-500.0,0.00021917,3]
[349053310,1736953855486,-650.44,0.00021917,3]
[349053311,1736953855496,-1282.9,0.00021917,3]
[349053312,1736953855506,-2139.02,0.00021917,3]
[349053313,1736953855516,-574.36,0.00021917,3]
[349053314,1736953855527,-2501.05,0.00021917,3]
[349053316,1736953855538,-1239.66,0.00021917,3]
[349053317,1736953855547,-1176.63,0.00021917,3]
[349053318,1736953855556,-700.25,0.00021917,3]
[349053319,1736953855566,-788.55,0.00021917,3]
[349053320,1736953855576,-14264.7,0.00021917,3]
[349053321,1736953855586,-940.83,0.00021917,3]
[349053322,1736953855604,-407.09976229,0.00021925,2]
[349053323,1736953855614,-4031.06346445,0.00021969,2]
[349053324,1736953855629,-6937.29892948,0.0002197,2]
[349053325,1736953855639,-656.87649056,0.00022,2]
[349053326,1736953855649,-14957.74941216,0.00022,2]
[349053327,1736953855659,-1000.0,0.00022,22]
[349053328,1736953855669,-1692.83,0.00022,2]
[349053329,1736953855680,-240.025975,0.00022,7]
[349053330,1736953855691,-163.0,0.00022,2]
[349053331,1736953855701,-476.51,0.00022054,3]
[349053332,1736953855711,-608.7,0.00022054,3]
[349053333,1736953855720,-639.84,0.00022054,3]
[349053334,1736953855731,-562.26,0.00022054,3]
[349053335,1736953855740,-511.4,0.00022054,3]
[349053336,1736953855750,-2680.33,0.00022054,3]
[349053337,1736953855760,-156.65,0.00022054,3]
[349053338,1736953855770,-650.44,0.00022054,3]
[349053339,1736953855782,-1282.9,0.00022054,3]
[349053340,1736953855792,-2139.02,0.00022054,3]
[349053341,1736953855802,-574.36,0.00022054,3]
[349053342,1736953855812,-2501.05,0.00022054,3]
[349053343,1736953855823,-1239.66,0.00022054,3]
[349053344,1736953855832,-1176.63,0.00022054,3]
[349053345,1736953855844,-700.25,0.00022054,3]
[349053346,1736953855854,-788.55,0.00022054,3]
[349053347,1736953855865,-14264.7,0.00022054,3]
[349053348,1736953855877,-940.83,0.00022054,3]
[349053349,1736953855887,-4031.06346445,0.00022107,2]
[349053350,1736953855897,-151.435,0.0002214,2]
[349053351,1736953855907,-276.211,0.0002214,2]
[349053352,1736953855917,-250.0,0.0002214,2]
[349053353,1736953855926,-150.544,0.0002214,2]
[349053354,1736953855936,-2070.0,0.0002214,2]
[349053355,1736953855947,-536.0,0.0002214,2]
[349053356,1736953855957,-2323.0,0.0002214,2]
[349053357,1736953855967,-407.09976229,0.00022171,2]
[349053359,1736953855977,-608.7,0.00022191,3]
[349053360,1736953855986,-639.84,0.00022191,3]
[349053361,1736953855997,-562.26,0.00022191,3]
[349053362,1736953856006,-511.4,0.00022191,3]
[349053363,1736953856017,-2680.33,0.00022191,3]
[349053364,1736953856026,-650.44,0.00022191,3]
[349053365,1736953856036,-1282.9,0.00022191,3]
[349053366,1736953856045,-2139.02,0.00022191,3]
[349053367,1736953856054,-574.36,0.00022191,3]
[349053368,1736953856063,-2501.05,0.00022191,3]
[349053369,1736953856073,-1239.66,0.00022191,3]
[349053370,1736953856089,-1176.63,0.00022191,3]
[349053371,1736953856103,-700.25,0.00022191,3]
[349053372,1736953856112,-788.55,0.00022191,3]
[349053373,1736953856123,-7651.88629838,0.00022191,3]
[349053574,1736954128845,168.480352,0.00013973,2]
[349053650,1736954644066,-256.564934,0.00018291,2]
[349053651,1736954644091,-5862.62224022,0.00018947,2]
[349053652,1736954644121,-161.11974132,0.00019078,2]
[349053653,1736954644146,-300.0,0.00019176,2]
[349053654,1736954644174,-500.0,0.00019177,2]
[349053655,1736954644200,-224.35370139,0.00019177,2]
[349053656,1736954644224,-500.0,0.00019177,2]
[349053657,1736954644249,-223.20189658,0.00019177,2]
[349053658,1736954644274,-500.0,0.00019178,2]
[349053659,1736954644298,-500.0,0.00019178,2]
[349053660,1736954644324,-500.0,0.00019178,2]
[349053661,1736954644349,-500.0,0.00019178,2]
[349053662,1736954644377,-539.94055402,0.00019178,2]
[349053663,1736954644402,-505.59250195,0.00019178,2]
[349053664,1736954644429,-490.19593004,0.00019178,2]
[349053665,1736954644454,-500.0,0.00019178,2]
[349053666,1736954644480,-500.94244147,0.00019178,2]
[349053667,1736954644505,-500.0,0.00019178,2]
[349053668,1736954644532,-500.0,0.00019178,2]
[349053669,1736954644556,-512.19154465,0.00019178,2]
[349053670,1736954644584,-501.80252969,0.00019178,2]
[349053671,1736954644616,-500.0,0.00019178,2]
[349053672,1736954644643,-500.0,0.00019178,2]
[349053673,1736954644669,-504.70337052,0.00019178,2]
[349053674,1736954644695,-500.0,0.00019178,2]
[349053675,1736954644722,-500.0,0.00019178,2]
[349053676,1736954644747,-500.0,0.00019178,2]
[349053677,1736954644772,-500.0,0.00019178,2]
[349053678,1736954644797,-508.72386539,0.00019178,2]
[349053679,1736954644820,-500.92982275,0.00019178,2]
[349053680,1736954644843,-510.90384221,0.00019178,2]
[349053681,1736954644871,-500.0,0.00019178,2]
[349053682,1736954644896,-500.0,0.00019178,2]
[349053683,1736954644919,-639.04437251,0.00019178,2]
[349053684,1736954644942,-500.0,0.00019178,2]
[349053685,1736954644966,-500.0,0.00019178,2]
[349053686,1736954644988,-500.0,0.00019178,2]
[349053687,1736954645015,-500.9208057,0.00019178,2]
[349053688,1736954645039,-500.0,0.00019178,2]
[349053689,1736954645063,-500.0,0.00019178,2]
[349053690,1736954645087,-500.0,0.00019178,2]
[349053691,1736954645113,-504.55250368,0.00019178,2]
[349053692,1736954645137,-536.6713274,0.00019178,2]
[349053693,1736954645160,-500.0,0.00019178,2]
[349053694,1736954645184,-500.0,0.00019178,2]
[349053695,1736954645208,-500.0,0.00019178,2]
[349053696,1736954645234,-503.62394129,0.00019178,2]
[349053697,1736954645259,-500.0,0.00019178,2]
[349053698,1736954645285,-500.0,0.00019178,2]
[349053699,1736954645310,-500.0,0.00019178,2]
[349053700,1736954645439,-504.27716045,0.00019178,2]
[349053701,1736954645466,-535.48646764,0.00019178,2]
[349053702,1736954645491,-500.0,0.00019178,2]
[349053703,1736954645514,-501.22094269,0.00019178,2]
[349053704,1736954645538,-500.0,0.00019178,2]
[349053705,1736954645563,-500.0,0.00019178,2]
[349053706,1736954645589,-267.75087493,0.00019178,2]
[349053707,1736954645618,-500.0,0.00019178,2]
[349053708,1736954645643,-500.0,0.00019178,2]
[349053709,1736954645668,-500.0,0.00019178,2]
[349053710,1736954645692,-500.0,0.00019178,2]
[349053711,1736954645714,-501.10294041,0.00019178,2]
[349053712,1736954645737,-500.0,0.00019178,2]
[349053713,1736954645760,-500.0,0.00019178,2]
[349053714,1736954645785,-500.0,0.00019178,2]
[349053715,1736954645808,-500.0,0.00019178,2]
[349053716,1736954645831,-501.50203221,0.00019178,2]
[349053717,1736954645854,-500.0,0.00019178,2]
[349053718,1736954645881,-501.05577655,0.00019178,14]
[349053719,1736954645906,-500.0,0.00019178,2]
[349053720,1736954645930,-500.0,0.00019178,2]
[349053721,1736954645954,-500.0,0.00019178,2]
[349053722,1736954645980,-500.0,0.00019178,2]
[349053723,1736954646006,-500.0,0.00019178,2]
[349053724,1736954646031,-502.16254598,0.00019178,2]
[349053725,1736954646057,-500.0,0.00019178,2]
[349053726,1736954646082,-500.0,0.00019178,2]
[349053727,1736954646107,-500.0,0.00019178,2]
[349053728,1736954646134,-500.0,0.00019178,2]
[349053729,1736954646157,-500.0,0.00019178,2]
[349053730,1736954646181,-500.0,0.00019178,2]
[349053731,1736954646204,-500.0,0.00019178,2]
[349053732,1736954646232,-500.0,0.00019178,2]
[349053733,1736954646256,-500.0,0.00019178,2]
[349053734,1736954646281,-500.0,0.00019178,2]
[349053735,1736954646304,-390.24311543,0.00019178,2]
[349053736,1736954646328,-500.0,0.00019178,2]
[349053737,1736954646351,-500.0,0.00019178,2]
[349053738,1736954646377,-500.0,0.00019178,2]
[349053739,1736954646401,-500.0,0.00019178,2]
[349053740,1736954646425,-500.0,0.00019178,2]
[349053741,1736954646450,-500.0,0.00019178,2]
[349053742,1736954646473,-504.67367799,0.00019178,2]
[349053743,1736954646497,-500.0,0.00019178,2]
[349053744,1736954646520,-500.0,0.00019178,2]